[Event "Titled Tuesday Blitz June 20 Late 2023"]
[White "Yurasova, Daria"]
[Black "Martinez, Ayelen"]
[WhiteFideId "34146919"]
[BlackFideId "118702"]
[WhiteElo "2109"]
[BlackElo "2074"]
[Result "1-0"]
[Round "10"]
[TimeControl "180+2"]
[Date "2023.06.20"]
[WhiteClock "0:00:42"]
[BlackClock "0:00:16"]
[Board "94"]

1. e4 {[%clk 0:03:00]}  c5 {[%clk 0:02:59]} 2. Nf3 {[%clk 0:03:00]}  d6 {[%clk 0:02:59]} 3. Bb5+ {[%clk 0:02:58]}  Nd7 {[%clk 0:02:55]} 4. O-O {[%clk 0:02:57]}  a6 {[%clk 0:02:54]} 5. Bxd7+ {[%clk 0:02:55]}  Bxd7 {[%clk 0:02:52]} 6. d4 {[%clk 0:02:55]}  cxd4 {[%clk 0:02:52]} 7. Nxd4 {[%clk 0:02:56]}  e5 {[%clk 0:02:52]} 8. Ne2 {[%clk 0:02:54]}  Be7 {[%clk 0:02:51]} 9. Nbc3 {[%clk 0:02:52]}  h6 {[%clk 0:02:49]} 10. Nd5 {[%clk 0:02:52]}  Nf6 {[%clk 0:02:46]} 11. Nxf6+ {[%clk 0:02:51]}  gxf6 {[%clk 0:02:44]} 12. Nc3 {[%clk 0:02:49]}  f5 {[%clk 0:02:38]} 13. exf5 {[%clk 0:02:49]}  Bxf5 {[%clk 0:02:39]} 14. Nd5 {[%clk 0:02:50]}  Rg8 {[%clk 0:02:30]} 15. Qf3 {[%clk 0:02:13]}  Bg4 {[%clk 0:02:18]} 16. Qb3 {[%clk 0:02:04]}  Rc8 {[%clk 0:02:00]} 17. Kh1 {[%clk 0:01:33]}  Bf5 {[%clk 0:01:52]} 18. Ne3 {[%clk 0:01:25]}  Be6 {[%clk 0:01:49]} 19. Qxb7 {[%clk 0:01:20]}  d5 {[%clk 0:01:37]} 20. Qxa6 {[%clk 0:01:17]}  d4 {[%clk 0:01:34]} 21. Qb5+ {[%clk 0:01:10]}  Bd7 {[%clk 0:01:30]} 22. Qxe5 {[%clk 0:01:10]}  dxe3 {[%clk 0:01:30]} 23. Bxe3 {[%clk 0:01:09]}  Bc6 {[%clk 0:01:23]} 24. f3 {[%clk 0:01:04]}  f6 {[%clk 0:01:12]} 25. Qh5+ {[%clk 0:01:03]}  Kd7 {[%clk 0:01:10]} 26. Rad1+ {[%clk 0:01:01]}  Bd6 {[%clk 0:01:08]} 27. Bc5 {[%clk 0:01:00]}  Rg5 {[%clk 0:01:05]} 28. Rxd6+ {[%clk 0:00:59]}  Kc7 {[%clk 0:01:04]} 29. Qf7+ {[%clk 0:00:46]}  Bd7 {[%clk 0:00:25]} 30. Bb6+ {[%clk 0:00:45]}  Kxd6 {[%clk 0:00:24]} 31. Rd1+ {[%clk 0:00:44]}  Kc6 {[%clk 0:00:19]} 32. Bxd8 {[%clk 0:00:42]}  Rxd8 {[%clk 0:00:16]} 33. Qxf6+ {[%clk 0:00:42]} 1-0


[Site "https://www.chess.com"]

[Event "Titled Tuesday Blitz June 20 Late 2023"]
[White "Florianovitz, Derlei Alex"]
[Black "Fernandez, Maria Florencia"]
[WhiteFideId "2114178"]
[BlackFideId "116459"]
[WhiteElo "1953"]
[BlackElo "2074"]
[Result "1-0"]
[Round "10"]
[TimeControl "180+2"]
[Date "2023.06.20"]
[WhiteClock "0:00:06"]
[BlackClock "0:00:06"]
[Board "98"]

1. e4 {[%clk 0:03:00]}  c5 {[%clk 0:02:58]} 2. Nf3 {[%clk 0:03:00]}  d6 {[%clk 0:02:58]} 3. d4 {[%clk 0:03:00]}  cxd4 {[%clk 0:02:59]} 4. Nxd4 {[%clk 0:03:00]}  Nf6 {[%clk 0:03:00]} 5. Nc3 {[%clk 0:03:01]}  g6 {[%clk 0:03:00]} 6. Be3 {[%clk 0:02:57]}  Bg7 {[%clk 0:02:57]} 7. f3 {[%clk 0:02:58]}  O-O {[%clk 0:02:57]} 8. Bc4 {[%clk 0:02:55]}  Nc6 {[%clk 0:02:57]} 9. Qd2 {[%clk 0:02:55]}  Bd7 {[%clk 0:02:53]} 10. O-O-O {[%clk 0:02:54]}  Rb8 {[%clk 0:02:47]} 11. h4 {[%clk 0:02:49]}  b5 {[%clk 0:02:44]} 12. Bb3 {[%clk 0:02:38]}  Na5 {[%clk 0:02:41]} 13. g4 {[%clk 0:02:31]}  Nc4 {[%clk 0:02:36]} 14. Bxc4 {[%clk 0:02:31]}  bxc4 {[%clk 0:02:37]} 15. h5 {[%clk 0:02:31]}  Qb6 {[%clk 0:02:29]} 16. Rdg1 {[%clk 0:02:23]}  Qxb2+ {[%clk 0:02:25]} 17. Kd1 {[%clk 0:02:23]}  e5 {[%clk 0:01:36]} 18. Nde2 {[%clk 0:02:12]}  d5 {[%clk 0:01:21]} 19. exd5 {[%clk 0:02:05]}  e4 {[%clk 0:01:17]} 20. hxg6 {[%clk 0:02:00]}  fxg6 {[%clk 0:01:08]} 21. fxe4 {[%clk 0:01:11]}  Nxg4 {[%clk 0:01:06]} 22. Bd4 {[%clk 0:01:10]}  Bxd4 {[%clk 0:00:55]} 23. Qxd4 {[%clk 0:01:02]}  Nf2+ {[%clk 0:00:48]} 24. Kd2 {[%clk 0:00:56]}  Nxh1 {[%clk 0:00:46]} 25. Rxh1 {[%clk 0:00:57]}  Qb6 {[%clk 0:00:34]} 26. Qxb6 {[%clk 0:00:37]}  Rxb6 {[%clk 0:00:29]} 27. e5 {[%clk 0:00:38]}  Bf5 {[%clk 0:00:25]} 28. Nd4 {[%clk 0:00:32]}  Re8 {[%clk 0:00:24]} 29. e6 {[%clk 0:00:29]}  Rd6 {[%clk 0:00:17]} 30. Ke3 {[%clk 0:00:23]}  a6 {[%clk 0:00:11]} 31. Nxf5 {[%clk 0:00:19]}  gxf5 {[%clk 0:00:11]} 32. Kf4 {[%clk 0:00:20]}  Rb6 {[%clk 0:00:06]} 33. Kxf5 {[%clk 0:00:19]}  Rb2 {[%clk 0:00:06]} 34. d6 {[%clk 0:00:15]}  Rxc2 {[%clk 0:00:07]} 35. d7 {[%clk 0:00:15]}  Rf2+ {[%clk 0:00:06]} 36. Ke5 {[%clk 0:00:13]}  Ref8 {[%clk 0:00:03]} 37. e7 {[%clk 0:00:12]}  R2f5+ {[%clk 0:00:02]} 38. Kd4 {[%clk 0:00:12]}  Rf4+ {[%clk 0:00:03]} 39. Ne4 {[%clk 0:00:12]}  Kf7 {[%clk 0:00:02]} 40. exf8=Q+ {[%clk 0:00:11]}  Kxf8 {[%clk 0:00:02]} 41. d8=Q+ {[%clk 0:00:11]}  Kg7 {[%clk 0:00:03]} 42. Qe7+ {[%clk 0:00:11]}  Rf7 {[%clk 0:00:03]} 43. Qe5+ {[%clk 0:00:11]}  Kf8 {[%clk 0:00:03]} 44. Rh2 {[%clk 0:00:10]}  c3 {[%clk 0:00:03]} 45. Rf2 {[%clk 0:00:10]}  c2 {[%clk 0:00:04]} 46. Qc5+ {[%clk 0:00:09]}  Kg8 {[%clk 0:00:03]} 47. Rxf7 {[%clk 0:00:06]}  Kxf7 {[%clk 0:00:04]} 48. Qxc2 {[%clk 0:00:06]}  Ke6 {[%clk 0:00:04]} 49. Qc6+ {[%clk 0:00:06]}  Kf5 {[%clk 0:00:05]} 50. Qf6+ {[%clk 0:00:06]}  Kg4 {[%clk 0:00:06]} 51. Qg5+ {[%clk 0:00:06]}  Kf3 {[%clk 0:00:06]} 52. Qg3+ {[%clk 0:00:06]}  Ke2 {[%clk 0:00:06]} 53. Qf2+ {[%clk 0:00:06]}  Kd1 {[%clk 0:00:06]} 54. Qd2# {[%clk 0:00:06]} 1-0


[Site "https://www.chess.com"]

[Event "Titled Tuesday Blitz June 20 Late 2023"]
[White "Sadilek, Peter"]
[Black "Tarnowska, Aleksandra"]
[WhiteFideId "1616439"]
[BlackFideId "1180967"]
[WhiteElo "2227"]
[BlackElo "1776"]
[Result "0-1"]
[Round "10"]
[TimeControl "180+2"]
[Date "2023.06.20"]
[WhiteClock "0:00:00"]
[BlackClock "0:00:23"]
[Board "99"]

1. e4 {[%clk 0:03:00]}  c5 {[%clk 0:02:59]} 2. Nf3 {[%clk 0:02:40]}  e6 {[%clk 0:02:58]} 3. Nc3 {[%clk 0:02:24]}  a6 {[%clk 0:02:57]} 4. g3 {[%clk 0:02:19]}  Qc7 {[%clk 0:02:56]} 5. Bg2 {[%clk 0:02:17]}  Nc6 {[%clk 0:02:57]} 6. O-O {[%clk 0:02:17]}  d6 {[%clk 0:02:57]} 7. Re1 {[%clk 0:02:15]}  Nf6 {[%clk 0:02:56]} 8. d4 {[%clk 0:02:09]}  cxd4 {[%clk 0:02:55]} 9. Nxd4 {[%clk 0:02:10]}  Be7 {[%clk 0:02:52]} 10. Nce2 {[%clk 0:01:59]}  O-O {[%clk 0:02:46]} 11. b3 {[%clk 0:01:57]}  Bd7 {[%clk 0:02:25]} 12. c4 {[%clk 0:01:55]}  Rfd8 {[%clk 0:02:15]} 13. Bb2 {[%clk 0:01:53]}  Rac8 {[%clk 0:02:11]} 14. Rc1 {[%clk 0:01:52]}  Nb4 {[%clk 0:02:09]} 15. Nc3 {[%clk 0:01:30]}  e5 {[%clk 0:02:02]} 16. Nf5 {[%clk 0:01:23]}  Bf8 {[%clk 0:01:54]} 17. Nd5 {[%clk 0:01:17]}  Nbxd5 {[%clk 0:01:42]} 18. cxd5 {[%clk 0:01:18]}  Qa5 {[%clk 0:01:40]} 19. a4 {[%clk 0:01:08]}  Qb4 {[%clk 0:01:33]} 20. Qd3 {[%clk 0:00:44]}  Bxa4 {[%clk 0:01:22]} 21. Bxe5 {[%clk 0:00:22]}  dxe5 {[%clk 0:00:45]} 22. bxa4 {[%clk 0:00:22]}  Qxa4 {[%clk 0:00:42]} 23. Rb1 {[%clk 0:00:15]}  b5 {[%clk 0:00:40]} 24. Ra1 {[%clk 0:00:15]}  Qc4 {[%clk 0:00:37]} 25. Qf3 {[%clk 0:00:12]}  g6 {[%clk 0:00:32]} 26. Ne3 {[%clk 0:00:09]}  Qc3 {[%clk 0:00:23]} 27. Qxf6 {[%clk 0:00:05]}  Bg7 {[%clk 0:00:24]} 28. Qxa6 {[%clk 0:00:04]}  Ra8 {[%clk 0:00:21]} 29. Qxa8 {[%clk 0:00:02]}  Rxa8 {[%clk 0:00:22]} 30. Rxa8+ {[%clk 0:00:00]}  Bf8 {[%clk 0:00:23]} 0-1


[Site "https://www.chess.com"]

[Event "Titled Tuesday Blitz June 20 Late 2023"]
[White "Sanchez, Robert"]
[Black "Stanisz, Patryk"]
[WhiteFideId "2034360"]
[BlackFideId "1123106"]
[WhiteElo "2086"]
[BlackElo "2069"]
[Result "1-0"]
[Round "10"]
[TimeControl "180+2"]
[Date "2023.06.20"]
[WhiteClock "0:00:35"]
[BlackClock "0:00:01"]
[Board "100"]

1. Nf3 {[%clk 0:03:00]}  d5 {[%clk 0:02:56]} 2. e3 {[%clk 0:02:59]}  Nf6 {[%clk 0:02:57]} 3. c4 {[%clk 0:03:00]}  c6 {[%clk 0:02:57]} 4. Nc3 {[%clk 0:03:00]}  Bg4 {[%clk 0:02:57]} 5. d4 {[%clk 0:03:00]}  e6 {[%clk 0:02:57]} 6. h3 {[%clk 0:03:01]}  Bh5 {[%clk 0:02:56]} 7. Be2 {[%clk 0:03:01]}  Nbd7 {[%clk 0:02:56]} 8. cxd5 {[%clk 0:02:59]}  exd5 {[%clk 0:02:57]} 9. O-O {[%clk 0:02:59]}  Bd6 {[%clk 0:02:54]} 10. a3 {[%clk 0:02:54]}  O-O {[%clk 0:02:53]} 11. b4 {[%clk 0:02:53]}  Re8 {[%clk 0:02:51]} 12. Bb2 {[%clk 0:02:49]}  a6 {[%clk 0:02:47]} 13. Rc1 {[%clk 0:02:49]}  Rc8 {[%clk 0:02:46]} 14. Na4 {[%clk 0:02:49]}  Bb8 {[%clk 0:02:45]} 15. Nc5 {[%clk 0:02:35]}  Ne4 {[%clk 0:02:39]} 16. Nxe4 {[%clk 0:02:25]}  dxe4 {[%clk 0:02:20]} 17. Nd2 {[%clk 0:02:25]}  Bxe2 {[%clk 0:02:12]} 18. Qxe2 {[%clk 0:02:24]}  Nf6 {[%clk 0:02:13]} 19. Nc4 {[%clk 0:02:18]}  Nd5 {[%clk 0:02:08]} 20. Qg4 {[%clk 0:02:14]}  Re6 {[%clk 0:02:01]} 21. Ne5 {[%clk 0:02:10]}  Qe7 {[%clk 0:01:48]} 22. Qxe4 {[%clk 0:01:59]}  f6 {[%clk 0:01:43]} 23. Qxd5 {[%clk 0:01:59]}  fxe5 {[%clk 0:01:27]} 24. dxe5 {[%clk 0:01:52]}  h6 {[%clk 0:01:24]} 25. f4 {[%clk 0:01:45]}  cxd5 {[%clk 0:01:17]} 26. Rxc8+ {[%clk 0:01:45]}  Kh7 {[%clk 0:01:18]} 27. Rxb8 {[%clk 0:01:46]}  Qc7 {[%clk 0:01:10]} 28. Ra8 {[%clk 0:01:40]}  Qc2 {[%clk 0:01:07]} 29. Bd4 {[%clk 0:01:40]}  Rg6 {[%clk 0:00:55]} 30. Rf2 {[%clk 0:01:38]}  Qb1+ {[%clk 0:00:55]} 31. Kh2 {[%clk 0:01:37]}  Qe1 {[%clk 0:00:45]} 32. Rf3 {[%clk 0:01:21]}  Qe2 {[%clk 0:00:40]} 33. Rg3 {[%clk 0:01:19]}  Rxg3 {[%clk 0:00:34]} 34. Kxg3 {[%clk 0:01:20]}  Qe1+ {[%clk 0:00:29]} 35. Kh2 {[%clk 0:01:14]}  Qb1 {[%clk 0:00:09]} 36. Rb8 {[%clk 0:00:58]}  b5 {[%clk 0:00:07]} 37. Rb7 {[%clk 0:00:50]}  Qe4 {[%clk 0:00:05]} 38. e6 {[%clk 0:00:46]}  Kg6 {[%clk 0:00:05]} 39. Rxg7+ {[%clk 0:00:43]}  Kf5 {[%clk 0:00:03]} 40. e7 {[%clk 0:00:35]}  Ke6 {[%clk 0:00:01]} 41. e8=Q+ {[%clk 0:00:35]} 1-0


[Site "https://www.chess.com"]

[Event "Titled Tuesday Blitz June 20 Late 2023"]
[White "Bongo Akanga Ndjila, Barthelemy"]
[Black "Vaglio Munoz, Jaime"]
[WhiteFideId "10609431"]
[BlackFideId "6500145"]
[WhiteElo "1768"]
[BlackElo "2199"]
[Result "0-1"]
[Round "10"]
[TimeControl "180+2"]
[Date "2023.06.20"]
[WhiteClock "0:00:01"]
[BlackClock "0:00:08"]
[Board "104"]

1. d4 {[%clk 0:03:00]}  g6 {[%clk 0:02:58]} 2. c4 {[%clk 0:03:00]}  Bg7 {[%clk 0:02:57]} 3. Nc3 {[%clk 0:03:01]}  d6 {[%clk 0:02:57]} 4. e4 {[%clk 0:03:01]}  Nd7 {[%clk 0:02:54]} 5. Be2 {[%clk 0:03:01]}  e5 {[%clk 0:02:54]} 6. d5 {[%clk 0:03:00]}  Ne7 {[%clk 0:02:52]} 7. Nf3 {[%clk 0:02:57]}  h6 {[%clk 0:02:51]} 8. Be3 {[%clk 0:02:51]}  O-O {[%clk 0:02:49]} 9. Nd2 {[%clk 0:02:50]}  f5 {[%clk 0:02:42]} 10. f3 {[%clk 0:02:48]}  f4 {[%clk 0:02:37]} 11. Bf2 {[%clk 0:02:46]}  a5 {[%clk 0:02:30]} 12. a4 {[%clk 0:02:42]}  b6 {[%clk 0:02:24]} 13. Rb1 {[%clk 0:02:39]}  Nc5 {[%clk 0:02:21]} 14. b4 {[%clk 0:02:37]}  axb4 {[%clk 0:02:19]} 15. Rxb4 {[%clk 0:02:37]}  Bd7 {[%clk 0:02:16]} 16. O-O {[%clk 0:02:30]}  Qe8 {[%clk 0:02:13]} 17. Nb5 {[%clk 0:02:26]}  Bxb5 {[%clk 0:02:07]} 18. cxb5 {[%clk 0:02:15]}  g5 {[%clk 0:02:05]} 19. Nc4 {[%clk 0:02:15]}  Qg6 {[%clk 0:01:58]} 20. Bxc5 {[%clk 0:01:58]}  dxc5 {[%clk 0:01:54]} 21. Rb2 {[%clk 0:01:51]}  Nc8 {[%clk 0:01:54]} 22. Ra2 {[%clk 0:01:35]}  Rf7 {[%clk 0:01:42]} 23. a5 {[%clk 0:01:35]}  h5 {[%clk 0:01:19]} 24. a6 {[%clk 0:01:12]}  Qf6 {[%clk 0:00:56]} 25. Nd2 {[%clk 0:01:06]}  Bf8 {[%clk 0:00:52]} 26. Bc4 {[%clk 0:01:05]}  Bd6 {[%clk 0:00:51]} 27. Rf2 {[%clk 0:00:55]}  Rg7 {[%clk 0:00:51]} 28. Nf1 {[%clk 0:00:52]}  g4 {[%clk 0:00:49]} 29. g3 {[%clk 0:00:46]}  Kh7 {[%clk 0:00:33]} 30. gxf4 {[%clk 0:00:36]}  exf4 {[%clk 0:00:32]} 31. fxg4 {[%clk 0:00:24]}  hxg4 {[%clk 0:00:28]} 32. Rg2 {[%clk 0:00:14]}  Qh4 {[%clk 0:00:25]} 33. e5 {[%clk 0:00:12]}  Bxe5 {[%clk 0:00:24]} 34. Qd3+ {[%clk 0:00:12]}  Kh8 {[%clk 0:00:22]} 35. Qf5 {[%clk 0:00:12]}  Bd4+ {[%clk 0:00:19]} 36. Kh1 {[%clk 0:00:11]}  Nd6 {[%clk 0:00:18]} 37. Qe6 {[%clk 0:00:09]}  Re8 {[%clk 0:00:14]} 38. Qxe8+ {[%clk 0:00:04]}  Nxe8 {[%clk 0:00:13]} 39. Rae2 {[%clk 0:00:05]}  Nd6 {[%clk 0:00:12]} 40. Ba2 {[%clk 0:00:04]}  f3 {[%clk 0:00:11]} 41. Re6 {[%clk 0:00:01]}  fxg2+ {[%clk 0:00:11]} 42. Kxg2 {[%clk 0:00:01]}  Qh3+ {[%clk 0:00:11]} 43. Kh1 {[%clk 0:00:01]}  Qxf1# {[%clk 0:00:08]} 0-1


[Site "https://www.chess.com"]

[Event "Titled Tuesday Blitz June 20 Late 2023"]
[White "Thiel, Thomas"]
[Black "Gyulamiryan-koryun"]
[WhiteFideId "4615964"]
[WhiteElo "2200"]
[BlackElo "1914"]
[Result "1-0"]
[Round "10"]
[TimeControl "180+2"]
[Date "2023.06.20"]
[WhiteClock "0:00:04"]
[BlackClock "0:00:00"]
[Board "105"]

1. e4 {[%clk 0:03:00]}  e5 {[%clk 0:02:56]} 2. Nf3 {[%clk 0:02:58]}  Nc6 {[%clk 0:02:55]} 3. d4 {[%clk 0:02:58]}  exd4 {[%clk 0:02:55]} 4. Nxd4 {[%clk 0:02:57]}  Bc5 {[%clk 0:02:54]} 5. Nb3 {[%clk 0:02:56]}  Bb6 {[%clk 0:02:54]} 6. Nc3 {[%clk 0:02:56]}  Nge7 {[%clk 0:02:53]} 7. Bg5 {[%clk 0:02:54]}  O-O {[%clk 0:02:52]} 8. Qd2 {[%clk 0:02:54]}  f6 {[%clk 0:02:46]} 9. Bh4 {[%clk 0:02:53]}  Ng6 {[%clk 0:02:24]} 10. Bg3 {[%clk 0:02:51]}  Nce5 {[%clk 0:02:23]} 11. O-O-O {[%clk 0:02:46]}  d6 {[%clk 0:02:19]} 12. f4 {[%clk 0:02:44]}  Ng4 {[%clk 0:02:18]} 13. Nd5 {[%clk 0:02:36]}  c6 {[%clk 0:02:12]} 14. Nxb6 {[%clk 0:02:33]}  axb6 {[%clk 0:02:11]} 15. Kb1 {[%clk 0:02:29]}  d5 {[%clk 0:01:52]} 16. exd5 {[%clk 0:02:25]}  c5 {[%clk 0:01:50]} 17. h3 {[%clk 0:02:22]}  Nh6 {[%clk 0:01:49]} 18. d6 {[%clk 0:02:09]}  Bd7 {[%clk 0:01:43]} 19. Qd5+ {[%clk 0:01:59]}  Kh8 {[%clk 0:01:36]} 20. Qxb7 {[%clk 0:01:57]}  Nf5 {[%clk 0:01:29]} 21. Bh2 {[%clk 0:01:50]}  Ne3 {[%clk 0:01:29]} 22. Rc1 {[%clk 0:01:41]}  Bf5 {[%clk 0:01:17]} 23. Qc7 {[%clk 0:01:33]}  Rf7 {[%clk 0:00:55]} 24. Qxd8+ {[%clk 0:01:30]}  Rxd8 {[%clk 0:00:55]} 25. g4 {[%clk 0:01:29]}  Be4 {[%clk 0:00:54]} 26. Rg1 {[%clk 0:01:25]}  f5 {[%clk 0:00:54]} 27. gxf5 {[%clk 0:01:11]}  Bxf5 {[%clk 0:00:54]} 28. Bb5 {[%clk 0:00:52]}  Rxd6 {[%clk 0:00:53]} 29. Rge1 {[%clk 0:00:48]}  Re7 {[%clk 0:00:51]} 30. Bg1 {[%clk 0:00:44]}  Nd5 {[%clk 0:00:49]} 31. Rxe7 {[%clk 0:00:42]}  Ngxe7 {[%clk 0:00:47]} 32. Bf1 {[%clk 0:00:37]}  g6 {[%clk 0:00:41]} 33. h4 {[%clk 0:00:27]}  Nb4 {[%clk 0:00:39]} 34. Nxc5 {[%clk 0:00:11]}  bxc5 {[%clk 0:00:38]} 35. Bxc5 {[%clk 0:00:10]}  Bxc2+ {[%clk 0:00:22]} 36. Ka1 {[%clk 0:00:08]}  Rd1 {[%clk 0:00:19]} 37. Rxd1 {[%clk 0:00:06]}  Bxd1 {[%clk 0:00:19]} 38. Bxb4 {[%clk 0:00:06]}  Nd5 {[%clk 0:00:18]} 39. Bc3+ {[%clk 0:00:06]}  Nxc3 {[%clk 0:00:12]} 40. bxc3 {[%clk 0:00:07]}  Kg7 {[%clk 0:00:09]} 41. Kb2 {[%clk 0:00:07]}  Kf6 {[%clk 0:00:09]} 42. Ka3 {[%clk 0:00:08]}  Ke6 {[%clk 0:00:08]} 43. Kb4 {[%clk 0:00:08]}  Kd6 {[%clk 0:00:08]} 44. a4 {[%clk 0:00:07]}  Kc7 {[%clk 0:00:08]} 45. a5 {[%clk 0:00:08]}  Kb7 {[%clk 0:00:08]} 46. a6+ {[%clk 0:00:09]}  Kb6 {[%clk 0:00:07]} 47. c4 {[%clk 0:00:08]}  Bf3 {[%clk 0:00:06]} 48. c5+ {[%clk 0:00:09]}  Ka7 {[%clk 0:00:05]} 49. Bb5 {[%clk 0:00:09]}  h6 {[%clk 0:00:03]} 50. Be8 {[%clk 0:00:06]}  Be4 {[%clk 0:00:00]} 51. Bb5 {[%clk 0:00:04]} 1-0


[Site "https://www.chess.com"]

[Event "Titled Tuesday Blitz June 20 Late 2023"]
[White "White, John S."]
[Black "Kopacz, Grzegorz"]
[WhiteFideId "2502348"]
[BlackFideId "1109880"]
[WhiteElo "2028"]
[BlackElo "2037"]
[Result "0-1"]
[Round "10"]
[TimeControl "180+2"]
[Date "2023.06.20"]
[WhiteClock "0:00:00"]
[BlackClock "0:00:17"]
[Board "108"]

1. e4 {[%clk 0:02:58]}  c5 {[%clk 0:03:00]} 2. Nf3 {[%clk 0:02:58]}  e6 {[%clk 0:03:00]} 3. d4 {[%clk 0:02:56]}  cxd4 {[%clk 0:03:01]} 4. Nxd4 {[%clk 0:02:56]}  Nf6 {[%clk 0:03:01]} 5. Nc3 {[%clk 0:02:55]}  Nc6 {[%clk 0:03:01]} 6. Be3 {[%clk 0:02:52]}  Bb4 {[%clk 0:03:01]} 7. Nb5 {[%clk 0:02:37]}  Nxe4 {[%clk 0:02:55]} 8. a3 {[%clk 0:02:35]}  Bxc3+ {[%clk 0:02:54]} 9. bxc3 {[%clk 0:02:34]}  O-O {[%clk 0:02:46]} 10. Qd3 {[%clk 0:02:27]}  d5 {[%clk 0:02:44]} 11. Be2 {[%clk 0:02:18]}  a6 {[%clk 0:02:43]} 12. Nd4 {[%clk 0:02:17]}  Ne5 {[%clk 0:02:43]} 13. Qd1 {[%clk 0:02:03]}  Nxc3 {[%clk 0:02:42]} 14. Qc1 {[%clk 0:01:53]}  Nxe2 {[%clk 0:02:41]} 15. Nxe2 {[%clk 0:01:52]}  Nc4 {[%clk 0:02:36]} 16. Bd4 {[%clk 0:01:48]}  Qa5+ {[%clk 0:02:35]} 17. Bc3 {[%clk 0:01:43]}  Qc7 {[%clk 0:02:32]} 18. O-O {[%clk 0:01:42]}  b5 {[%clk 0:02:23]} 19. Qg5 {[%clk 0:01:37]}  e5 {[%clk 0:02:20]} 20. Ng3 {[%clk 0:01:29]}  f6 {[%clk 0:02:19]} 21. Qh4 {[%clk 0:01:21]}  d4 {[%clk 0:02:17]} 22. Bb4 {[%clk 0:01:18]}  Rf7 {[%clk 0:02:02]} 23. f4 {[%clk 0:01:15]}  Ne3 {[%clk 0:01:56]} 24. Rf2 {[%clk 0:01:09]}  a5 {[%clk 0:01:33]} 25. Be1 {[%clk 0:01:00]}  exf4 {[%clk 0:01:23]} 26. Rxf4 {[%clk 0:00:57]}  Qxc2 {[%clk 0:01:22]} 27. Rf2 {[%clk 0:00:44]}  Qc4 {[%clk 0:01:02]} 28. Ne4 {[%clk 0:00:34]}  Ra6 {[%clk 0:00:48]} 29. Bd2 {[%clk 0:00:29]}  Bb7 {[%clk 0:00:42]} 30. Rc1 {[%clk 0:00:26]}  Qd5 {[%clk 0:00:36]} 31. Nc5 {[%clk 0:00:16]}  Rc6 {[%clk 0:00:30]} 32. Nxb7 {[%clk 0:00:14]}  Rxc1+ {[%clk 0:00:30]} 33. Bxc1 {[%clk 0:00:13]}  Rxb7 {[%clk 0:00:29]} 34. Rd2 {[%clk 0:00:09]}  Rd7 {[%clk 0:00:24]} 35. Qh3 {[%clk 0:00:08]}  Nc4 {[%clk 0:00:22]} 36. Re2 {[%clk 0:00:06]}  Rd8 {[%clk 0:00:19]} 37. Qg4 {[%clk 0:00:04]}  d3 {[%clk 0:00:19]} 38. Re6 {[%clk 0:00:00]}  Qd4+ {[%clk 0:00:17]} 0-1


[Site "https://www.chess.com"]

[Event "Titled Tuesday Blitz June 20 Late 2023"]
[White "Cueto, Jonny"]
[Black "Grabs, Peter"]
[WhiteFideId "3300145"]
[BlackFideId "16203887"]
[WhiteElo "2240"]
[BlackElo "1696"]
[Result "1-0"]
[Round "10"]
[TimeControl "180+2"]
[Date "2023.06.20"]
[WhiteClock "0:01:35"]
[BlackClock "0:01:53"]
[Board "109"]

1. d4 {[%clk 0:02:53]}  e6 {[%clk 0:03:00]} 2. Bf4 {[%clk 0:02:52]}  d5 {[%clk 0:03:00]} 3. e3 {[%clk 0:02:52]}  Nf6 {[%clk 0:02:59]} 4. Nf3 {[%clk 0:02:53]}  Nbd7 {[%clk 0:02:58]} 5. Nbd2 {[%clk 0:02:53]}  Bd6 {[%clk 0:02:53]} 6. Ne5 {[%clk 0:02:53]}  Bxe5 {[%clk 0:02:52]} 7. dxe5 {[%clk 0:02:53]}  Ne4 {[%clk 0:02:50]} 8. Nxe4 {[%clk 0:02:51]}  dxe4 {[%clk 0:02:50]} 9. Qg4 {[%clk 0:02:50]}  Rg8 {[%clk 0:02:20]} 10. O-O-O {[%clk 0:02:49]}  Qe7 {[%clk 0:02:14]} 11. Bg5 {[%clk 0:02:09]}  f6 {[%clk 0:02:12]} 12. exf6 {[%clk 0:01:59]}  Nxf6 {[%clk 0:02:12]} 13. Bxf6 {[%clk 0:01:59]}  Qxf6 {[%clk 0:02:10]} 14. Qxe4 {[%clk 0:01:59]}  Qxf2 {[%clk 0:01:53]} 15. Bb5+ {[%clk 0:01:35]} 1-0


[Site "https://www.chess.com"]

[Event "Titled Tuesday Blitz June 20 Late 2023"]
[White "Burke, Paul"]
[Black "Dmitriev, Sergey"]
[WhiteFideId "2605767"]
[BlackFideId "14101785"]
[WhiteElo "1920"]
[BlackElo "2132"]
[Result "0-1"]
[Round "10"]
[TimeControl "180+2"]
[Date "2023.06.20"]
[WhiteClock "0:02:00"]
[BlackClock "0:01:53"]
[Board "110"]

1. e4 {[%clk 0:02:37]}  d6 {[%clk 0:03:00]} 2. Nc3 {[%clk 0:02:35]}  g6 {[%clk 0:02:59]} 3. g3 {[%clk 0:02:36]}  Bg7 {[%clk 0:02:59]} 4. Bg2 {[%clk 0:02:36]}  Nf6 {[%clk 0:02:59]} 5. Nge2 {[%clk 0:02:36]}  O-O {[%clk 0:02:59]} 6. d3 {[%clk 0:02:37]}  e5 {[%clk 0:02:58]} 7. h3 {[%clk 0:02:37]}  Nc6 {[%clk 0:02:57]} 8. O-O {[%clk 0:02:37]}  Re8 {[%clk 0:02:53]} 9. f4 {[%clk 0:02:37]}  exf4 {[%clk 0:02:53]} 10. Nxf4 {[%clk 0:02:37]}  Nd4 {[%clk 0:02:44]} 11. Ncd5 {[%clk 0:02:33]}  Nxd5 {[%clk 0:02:41]} 12. Nxd5 {[%clk 0:02:33]}  c6 {[%clk 0:02:37]} 13. Nf4 {[%clk 0:02:32]}  Ne6 {[%clk 0:02:34]} 14. Nxe6 {[%clk 0:02:31]}  Bxe6 {[%clk 0:02:32]} 15. c3 {[%clk 0:02:31]}  f5 {[%clk 0:02:26]} 16. exf5 {[%clk 0:02:29]}  Bxf5 {[%clk 0:02:26]} 17. Rxf5 {[%clk 0:02:29]}  gxf5 {[%clk 0:02:24]} 18. Qf3 {[%clk 0:02:28]}  Qb6+ {[%clk 0:02:12]} 19. Kh2 {[%clk 0:02:26]}  Rf8 {[%clk 0:02:05]} 20. Bf4 {[%clk 0:02:11]}  d5 {[%clk 0:02:00]} 21. d4 {[%clk 0:02:06]}  Rae8 {[%clk 0:01:59]} 22. Rf1 {[%clk 0:02:00]}  Qxb2 {[%clk 0:01:53]} 0-1


[Site "https://www.chess.com"]